lending/lending_fUSD_20251111
["ID","MTS","AMOUNT","RATE_DAILY","PERIOD"]
[393611446,1762852240250,-151.0,0.00039747,120]
[393611447,1762852240260,-151.699166,0.00039747,120]
[393611448,1762852240270,-151.0,0.00039747,120]
[393611449,1762852240279,-151.0,0.00039747,120]
[393611450,1762852240294,-151.0,0.00039747,120]
[393611451,1762852240303,-151.0,0.00039747,120]
[393611452,1762852240312,-164.322279,0.00039747,120]
[393611453,1762852240322,-151.0,0.00039747,120]
[393611454,1762852240331,-151.0,0.00039747,120]
[393611455,1762852240341,-151.0,0.00039747,120]
[393611456,1762852240351,-177.07649,0.00039747,120]
[393611457,1762852240361,-151.0,0.00039747,120]
[393611458,1762852240371,-151.0,0.00039747,120]
[393611459,1762852240383,-153.202601,0.00039747,120]
[393611460,1762852240392,-151.0,0.00039747,120]
[393611461,1762852240403,-151.0,0.00039747,120]
[393611462,1762852240413,-151.0,0.00039747,120]
[393611463,1762852240423,-151.0,0.00039747,120]
[393611464,1762852240433,-151.0,0.00039747,120]
[393611465,1762852240443,-151.0,0.00039747,120]
[393611466,1762852240453,-151.0,0.00039747,120]
[393611467,1762852240462,-154.052997,0.00039747,120]
[393611468,1762852240472,-152.361552,0.00039747,120]
[393611469,1762852240483,-151.0,0.00039747,120]
[393611470,1762852240493,-151.0,0.00039747,120]
[393611471,1762852240503,-151.0,0.00039747,120]
[393611472,1762852240513,-241.55758,0.00039747,120]
[393611473,1762852240523,-151.0,0.00039747,120]
[393611474,1762852240533,-151.0,0.00039747,120]
[393611475,1762852240542,-151.0,0.00039747,120]
[393611476,1762852240552,-151.0,0.00039747,120]
[393611477,1762852240562,-151.0,0.00039747,120]
[393611478,1762852240572,-151.0,0.00039747,120]
[393611479,1762852240581,-151.0,0.00039747,120]
[393611480,1762852240591,-151.0,0.00039747,120]
[393611481,1762852240601,-151.0,0.00039747,120]
[393611482,1762852240611,-151.0,0.00039747,120]
[393611483,1762852240621,-151.0,0.00039747,120]
[393611484,1762852240631,-151.0,0.00039747,120]
[393611485,1762852240645,-151.0,0.00039747,120]
[393611486,1762852240656,-151.0,0.00039747,120]
[393611487,1762852240666,-151.0,0.00039747,120]
[393611488,1762852240678,-151.0,0.00039747,120]
[393611489,1762852240688,-151.0,0.00039747,120]
[393611490,1762852240697,-151.0,0.00039747,120]
[393611491,1762852240707,-151.0,0.00039747,120]
[393611492,1762852240720,-151.0,0.00039747,120]
[393611493,1762852240729,-151.0,0.00039747,120]
[393611494,1762852240739,-151.0,0.00039747,120]
[393611495,1762852240749,-179.403278,0.00039747,120]
[393611496,1762852240758,-151.0,0.00039747,120]
[393611497,1762852240768,-151.0,0.00039747,120]
[393611498,1762852240778,-151.0,0.00039747,120]
[393611499,1762852240787,-151.0,0.00039747,120]
[393611500,1762852240797,-151.0,0.00039747,120]
[393611501,1762852240807,-151.0,0.00039747,120]
[393611502,1762852240816,-151.0,0.00039747,120]
[393611503,1762852240826,-151.0,0.00039747,120]
[393611504,1762852240836,-151.0,0.00039747,120]
[393611505,1762852240846,-151.0,0.00039747,120]
[393611506,1762852240855,-151.0,0.00039747,120]
[393611507,1762852240865,-158.700608,0.00039747,120]
[393611508,1762852240875,-151.0,0.00039747,120]
[393611509,1762852240885,-151.0,0.00039747,120]
[393611510,1762852240896,-151.0,0.00039747,120]
[393611511,1762852240907,-151.0,0.00039747,120]
[393611512,1762852240917,-151.0,0.00039747,120]
[393611513,1762852240927,-151.0,0.00039747,120]
[393611514,1762852240936,-151.0,0.00039747,120]
[393611515,1762852240946,-779.400112,0.00039747,120]
[393611516,1762852240955,-151.0,0.00039747,120]
[393611517,1762852240964,-779.400112,0.00039747,120]
[393611518,1762852240974,-151.0,0.00039747,120]
[393611519,1762852240983,-779.400112,0.00039747,120]
[393611520,1762852240994,-285.838095,0.00039747,120]
[393611521,1762852241003,-779.400112,0.00039747,120]
[393611522,1762852241013,-151.0,0.00039747,120]
[393611523,1762852241023,-779.400112,0.00039747,120]
[393611524,1762852241034,-151.0,0.00039747,120]
[393611525,1762852241045,-151.0,0.00039747,120]
[393611526,1762852241055,-779.400112,0.00039747,120]
[393611527,1762852241065,-159.742254,0.00039747,120]
[393611528,1762852241075,-779.400112,0.00039747,120]
[393611529,1762852241085,-151.0,0.00039747,120]
[393611530,1762852241094,-151.0,0.00039747,120]
[393611531,1762852241106,-779.400112,0.00039747,120]
[393611532,1762852241115,-779.400112,0.00039747,120]
[393611533,1762852241125,-151.0,0.00039747,120]
[393611534,1762852241135,-151.0,0.00039747,120]
[393611535,1762852241145,-151.0,0.00039747,120]
[393611536,1762852241155,-779.400112,0.00039747,120]
[393611537,1762852241165,-151.0,0.00039747,120]
[393611538,1762852241175,-779.400112,0.00039747,120]
[393611539,1762852241185,-151.0,0.00039747,120]
[393611540,1762852241195,-151.0,0.00039747,120]
[393611541,1762852241205,-779.400112,0.00039747,120]
[393611542,1762852241215,-151.0,0.00039747,120]
[393611543,1762852241224,-151.0,0.00039747,120]
[393611544,1762852241234,-779.400112,0.00039747,120]
[393611545,1762852241243,-151.0,0.00039747,120]
[393611546,1762852241253,-779.400112,0.00039747,120]
[393611547,1762852241263,-151.0,0.00039747,120]
[393611548,1762852241273,-151.0,0.00039747,120]
[393611549,1762852241283,-779.400112,0.00039747,120]
[393611550,1762852241292,-151.0,0.00039747,120]
[393611551,1762852241301,-779.400112,0.00039747,120]
[393611552,1762852241311,-151.0,0.00039747,120]
[393611553,1762852241320,-779.400112,0.00039747,120]
[393611554,1762852241330,-151.0,0.00039747,120]
[393611555,1762852241339,-779.400112,0.00039747,120]
[393611556,1762852241348,-151.0,0.00039747,120]
[393611557,1762852241357,-151.0,0.00039747,120]
[393611558,1762852241367,-151.0,0.00039747,120]
[393611559,1762852241376,-151.0,0.00039747,120]
[393611560,1762852241386,-779.400112,0.00039747,120]
[393611561,1762852241395,-151.0,0.00039747,120]
[393611562,1762852241406,-233.764415,0.00039747,120]
[393611563,1762852241415,-779.400122,0.00039747,120]
[393611564,1762852241424,-151.0,0.00039747,120]
[393611565,1762852241434,-200.756274,0.00039747,120]
[393611566,1762852241444,-151.0,0.00039747,60]
[393611567,1762852241453,-151.0,0.00039747,120]
[393611568,1762852241464,-156.956614,0.00039747,120]
[393611569,1762852241474,-151.0,0.00039747,120]
[393611570,1762852241484,-151.0,0.00039747,120]
[393611571,1762852241493,-151.0,0.00039747,120]
[393611572,1762852241503,-151.0,0.00039747,120]
[393611573,1762852241512,-151.0,0.00039747,120]
[393611574,1762852241522,-151.0,0.00039747,120]
[393611575,1762852241531,-151.0,0.00039747,120]
[393611576,1762852241541,-151.0,0.00039747,120]
[393611577,1762852241550,-158.959646,0.00039747,120]
[393611578,1762852241559,-159.906294,0.00039747,120]
[393611579,1762852241569,-156.688145,0.00039747,120]
[393611580,1762852241578,-151.0,0.00039747,120]
[393611581,1762852241588,-151.0,0.00039747,120]
[393611582,1762852241599,-151.0,0.00039747,120]
[393611583,1762852241609,-151.0,0.00039747,120]
[393611584,1762852241618,-151.0,0.00039747,120]
[393611585,1762852241629,-151.0,0.00039747,120]
[393611586,1762852241641,-151.0,0.00039747,120]
[393611587,1762852241652,-151.0,0.00039747,120]
[393611588,1762852241661,-151.0,0.00039747,120]
[393611589,1762852241673,-232.186015,0.00039747,120]
[393611590,1762852241683,-151.0,0.00039747,120]
[393611591,1762852241692,-232.186015,0.00039747,120]
[393611592,1762852241702,-151.0,0.00039747,120]
[393611593,1762852241712,-232.186015,0.00039747,120]
[393611594,1762852241723,-190.120582,0.00039747,120]
[393611595,1762852241732,-232.186015,0.00039747,120]
[393611596,1762852241742,-232.186015,0.00039747,120]
[393611597,1762852241751,-232.186015,0.00039747,120]
[393611598,1762852241761,-232.186015,0.00039747,120]
[393611599,1762852241771,-232.186015,0.00039747,120]
[393611600,1762852241781,-232.186015,0.00039747,120]
[393611601,1762852241791,-232.186015,0.00039747,120]
[393611602,1762852241801,-232.186015,0.00039747,120]
[393611603,1762852241811,-232.186015,0.00039747,120]
[393611604,1762852241821,-232.186015,0.00039747,120]
[393611605,1762852241831,-232.186015,0.00039747,120]
[393611606,1762852241841,-232.186015,0.00039747,120]
[393611607,1762852241850,-232.186015,0.00039747,120]
[393611608,1762852241860,-232.186015,0.00039747,120]
[393611609,1762852241870,-232.186015,0.00039747,120]
[393611610,1762852241880,-232.186015,0.00039747,120]
[393611611,1762852241890,-151.0,0.00039747,95]
[393611612,1762852241900,-232.186015,0.00039747,120]
[393611613,1762852241954,-151.0,0.00039747,95]
[393611614,1762852241965,-221.868087,0.00039747,95]
[393611615,1762852241974,-151.0,0.00039747,120]
[393611616,1762852241983,-153.658686,0.00039747,120]
[393611617,1762852241993,-151.0,0.00039747,120]
[393611618,1762852242002,-151.0,0.00039747,120]
[393611619,1762852242011,-151.0,0.00039747,120]
[393611620,1762852242020,-151.0,0.00039747,120]
[393611621,1762852242030,-151.0,0.00039747,120]
[393611622,1762852242039,-151.0,0.00039747,120]
[393611623,1762852242049,-151.0,0.00039747,120]
[393611624,1762852242058,-151.0,0.00039747,120]
[393611625,1762852242067,-151.0,0.00039747,120]
[393611626,1762852242077,-151.0,0.00039747,120]
[393611627,1762852242088,-151.0,0.00039747,120]
[393611628,1762852242098,-151.0,0.00039747,120]
[393611629,1762852242108,-151.0,0.00039747,120]
[393611630,1762852242117,-151.89687,0.00039747,30]
[393611631,1762852242127,-55155.78901987,0.00039749,29]
[393611632,1762852242136,-234.39226363,0.00039749,31]
[393611633,1762852242145,-5029606.57793176,0.0003975,7]
[393611634,1762852242156,-4219531.90856431,0.0003975,7]
[393611635,1762852242307,-246.89823067,0.0003974,2]
[393611636,1762852242317,-806.96399253,0.0003975,7]
[393611637,1762852242328,-862.35005648,0.0003975,7]
[393611638,1762852242338,-415.39022704,0.0003975,7]
[393611639,1762852242349,-8732.77425892,0.0003975,7]
[393611640,1762852242360,-8947.21879473,0.0003975,7]
[393611641,1762852242370,-8943.78386462,0.0003975,7]
[393611642,1762852242381,-9077.54866152,0.0003975,7]
[393611643,1762852242392,-8943.84023489,0.0003975,7]
[393611647,1762852243307,-147.61732642,0.00039593,11]
[393611648,1762852243456,-328.11608346,0.00039593,11]
[393611649,1762852243465,-1444474.37580188,0.0003975,7]
[393611650,1762852243510,-797.76350892,0.0003975,7]
[393611684,1762852246632,-475.73340988,0.000396,11]
[393611685,1762852246652,-130.39606909,0.0003975,7]
[393611686,1762852246669,-561.0214579,0.0003975,7]
[393611691,1762852384663,151.24241909,0.00022,30]
[393611694,1762852566586,300.0,0.00020473,120]
[393611696,1762852569272,300.0,0.00020473,60]
[393611697,1762852569377,300.0,0.0001964,60]
[393611740,1762853113760,3474.75451677,0.00022,30]
[393611748,1762853213928,3507.76663266,0.000162,5]
[393611752,1762853232127,275.013006,0.00014935,2]
[393611753,1762853278534,-270.86314709,0.00015,2]
[393611754,1762853281355,300.0,0.00014999,2]
[393611755,1762853311702,240.31149074,0.00014999,2]
[393611756,1762853311743,223.07348842,0.00014999,2]
[393611757,1762853311779,500.0,0.00014999,2]
[393611758,1762853311847,335.25437967,0.00014999,2]
[393611759,1762853312776,490.05013836,0.00014999,2]
[393611760,1762853313814,500.0,0.00014999,2]
[393611761,1762853313851,318.33264924,0.00014999,2]
[393611762,1762853313888,614.66257539,0.00014999,2]
[393611763,1762853313941,500.0,0.00014999,2]
[393611764,1762853313989,500.0,0.00014999,2]
[393611765,1762853314041,500.0,0.00014999,2]
[393611766,1762853314087,500.0,0.00014999,2]
[393611767,1762853314131,500.0,0.00014999,2]
[393611768,1762853314174,500.0,0.00014999,2]
[393611769,1762853314215,500.0,0.00014999,2]
[393611770,1762853314266,500.0,0.00014999,2]
[393611771,1762853314309,500.0,0.00014999,2]
[393611772,1762853314528,168.23220971,0.00014999,2]
[393611773,1762853314577,500.0,0.00014999,2]
[393611774,1762853314624,500.0,0.00014999,2]
[393611775,1762853314667,500.0,0.00014999,2]
[393611776,1762853314712,500.0,0.00014999,2]
[393611777,1762853314756,110.09306847,0.00014999,2]
[393611778,1762853314781,389.90693153,0.00014999,2]
[393611779,1762853314827,500.0,0.00014999,2]
[393611780,1762853314870,500.0,0.00014999,2]
[393611781,1762853314919,500.0,0.00014999,2]
[393611782,1762853314964,500.0,0.00014999,2]
[393611783,1762853315004,500.0,0.00014999,2]
[393611784,1762853315046,500.0,0.00014999,2]
[393611785,1762853315116,500.0,0.00014999,2]
[393611786,1762853317131,90643.89041321,0.00015,3]
[393611787,1762853317156,100000.0,0.00015,3]
[393611788,1762853317181,100000.0,0.00015,3]
[393611789,1762853317209,100000.0,0.00015,3]
[393611790,1762853317234,100000.0,0.00015,3]
[393611791,1762853317260,100000.0,0.00015,3]
[393611792,1762853317286,100000.0,0.00015,3]
[393611793,1762853317311,100000.0,0.00015,3]
[393611794,1762853317335,100000.0,0.00015,3]
[393611795,1762853317359,100000.0,0.00015,3]
[393611796,1762853379554,164.09306745,0.000149,2]
[393611797,1762853401245,1200.0,0.00014999,2]
[393611798,1762853401510,300.0,0.00014999,2]
[393611799,1762853402979,150.0,0.00014999,2]
[393611800,1762853404885,325.0,0.00014986,2]
[393611801,1762853404952,857.0,0.00014986,2]
[393611802,1762853406903,1040.07,0.0001499,2]
[393611803,1762853407131,1040.07,0.0001499,2]
[393611804,1762853417804,707.77038929,0.0001499,2]
[393611805,1762853420223,151.0,0.00014997,2]
[393611815,1762853432259,-261.7144669,0.00015,2]
[393611816,1762853432271,-520.1919484,0.00015,2]
[393611817,1762853432312,-17000.5763489,0.00015,2]
[393611818,1762853432366,-444968.60656727,0.00015,2]
[393611819,1762853432421,-1765.86379233,0.00015,2]
[393611820,1762853432474,-6268.16078329,0.00015,2]
[393611821,1762853432529,-543.37670789,0.00015,2]
[393611825,1762853432906,175.09961173,0.00014999,2]
[393611826,1762853432933,324.90038827,0.00014999,2]
[393611827,1762853432979,250.01963985,0.00014999,2]
[393611828,1762853433024,500.0,0.00014999,2]
[393611829,1762853433066,500.0,0.00014999,2]
[393611830,1762853433112,500.0,0.00014999,2]
[393611831,1762853433157,500.0,0.00014999,2]
[393611832,1762853433202,500.0,0.00014999,2]
[393611833,1762853438183,-2209.98352126,0.00015,2]
[393611834,1762853438237,-1421.56746273,0.00015,2]
[393611835,1762853438404,-7167.08885631,0.00015,2]
[393611836,1762853438421,-189863.45205799,0.00015,2]
[393611837,1762853438432,-25272.01125329,0.00015,2]
[393611838,1762853438442,-2790766.99919028,0.00015,3]
[393611839,1762853438452,-42761.37692685,0.00015,2]
[393611841,1762853438462,-195.0,0.00015,2]
[393611842,1762853438471,-1200.0,0.00015009,2]
[393611843,1762853438483,-37480.3694381,0.0001501,2]
[393611844,1762853438492,-195.0,0.00015156,2]
[393611845,1762853438503,-250.0,0.0001576,2]
[393611847,1762853438513,-1919.53240489,0.00015807,2]
[393611849,1762853438522,-255.0,0.00016124,2]
[393611851,1762853438533,-200.0,0.0001634,2]
[393611853,1762853438543,-420.0,0.00016416,2]
[393611855,1762853438553,-500.0,0.00016438,2]
[393611857,1762853438563,-366.7,0.00016438,2]
[393611859,1762853438573,-500.0,0.00016438,2]
[393611861,1762853438583,-178.39999998,0.00016438,2]
[393611863,1762853438593,-500.0,0.00016438,2]
[393611865,1762853438603,-500.0,0.00016438,2]
[393611867,1762853438612,-500.0,0.00016438,2]
[393611870,1762853438622,-500.0,0.00016438,2]
[393611872,1762853438633,-203.44352092,0.00016438,2]
[393611874,1762853438642,-622.57412859,0.00016438,2]
[393611876,1762853438652,-500.0,0.00016438,2]
[393611878,1762853438662,-500.0,0.00016438,2]
[393611880,1762853438672,-250.0,0.00016496,2]
[393611882,1762853438681,-1680.0,0.00016499,2]
[393611884,1762853438692,-195.0,0.000165,2]
[393611886,1762853438701,-300.0,0.000165,2]
[393611888,1762853438711,-300.0,0.000165,2]
[393611890,1762853438721,-345.82097546,0.000165,2]
[393611892,1762853438732,-195.0,0.0001651,2]
[393611894,1762853438742,-250.0,0.00016511,2]
[393611895,1762853438752,-159.29,0.00016858,2]
[393611896,1762853438762,-250.0,0.00017,2]
[393611897,1762853438776,-741.63867091,0.00017,3]
[393611898,1762853438787,-250.0,0.0001732,2]
[393611899,1762853438798,-433.0,0.00017339,2]
[393611900,1762853438808,-150.0,0.00017476,2]
[393611901,1762853438818,-300.0,0.000177,5]
[393611902,1762853438830,-6956.36628324,0.00017946,2]
[393611903,1762853438840,-587.0,0.00017966,2]
[393611904,1762853438852,-500.0,0.00017973,2]
[393611905,1762853438862,-500.0,0.00017973,2]
[393611906,1762853438873,-177.4,0.0001799,3]
[393611907,1762853438883,-707.77038929,0.0001799,2]
[393611908,1762853438894,-151.0,0.00017997,2]
[393611909,1762853438904,-1906104.28247013,0.00018,2]
[393611910,1762853438915,-202.52590875,0.00018046,2]
[393611911,1762853438925,-500.0,0.00018051,2]
[393611912,1762853438937,-156.0,0.00018146,2]
[393611913,1762853438949,-1894.0,0.00018149,2]
[393611914,1762853438960,-160.0,0.00018228,2]
[393611915,1762853438979,-164.09306745,0.00018436,2]
[393611916,1762853438991,-500.0,0.00018512,2]
[393611917,1762853439002,-1000.0,0.00018521,2]
[393611918,1762853439015,-500.0,0.00018521,2]
[393611919,1762853439026,-396.0,0.00018629,2]
[393611920,1762853439037,-150.15,0.000188,2]
[393611921,1762853439048,-150.15,0.000188,2]
[393611922,1762853439058,-150.15,0.000188,2]
[393611923,1762853439070,-150.15,0.000188,2]
[393611924,1762853439082,-159.29,0.00018882,2]
[393611925,1762853439094,-212.13517368,0.00019,2]
[393611926,1762853439105,-5122.98177982,0.00019,2]
[393611927,1762853439115,-1351.17997703,0.00019068,2]
[393611928,1762853439127,-6064.59957958,0.000195,7]
[393611929,1762853439138,-6956.36628316,0.00020358,2]
[393611930,1762853439150,-478.44322026,0.00020713,2]
[393611931,1762853439162,-159.29,0.00020907,2]
[393611932,1762853439178,-164.09306745,0.00021972,2]
[393611933,1762853439189,-211.15,0.00022,2]
[393611934,1762853439201,-6956.36628316,0.0002277,2]
[393611935,1762853439211,-159.29,0.00022931,2]
[393611936,1762853439223,-3027.77828848,0.00023,2]
[393611937,1762853439233,-156.0,0.00023523,2]
[393611938,1762853439244,-1000.0,0.00024,24]
[393611939,1762853439255,-211.15,0.00024219,2]
[393611940,1762853439266,-300.0,0.00024799,10]
[393611941,1762853439277,-666.0,0.00024799,2]
[393611942,1762853439287,-253834.410034,0.000248,3]
[393611943,1762853439302,-500.0,0.00024873,2]
[393611944,1762853439312,-500.0,0.00024873,2]
[393611945,1762853439322,-500.0,0.00024873,2]
[393611946,1762853439332,-342.5739675,0.00024873,2]
[393611947,1762853439342,-218.82459366,0.00024873,2]
[393611948,1762853439353,-500.0,0.00024873,2]
[393611949,1762853439363,-500.0,0.00024873,2]
[393611950,1762853439373,-150.15,0.0002489,2]
[393611951,1762853439383,-707.77038929,0.0002489,2]
[393611952,1762853439394,-666.0,0.00024899,2]
[393611953,1762853439403,-334389.887232,0.000249,3]
[393611954,1762853439413,-173.62,0.00024911,2]
[393611955,1762853439424,-303.62,0.00024914,2]
[393611956,1762853439435,-159.29,0.00024956,2]
[393611957,1762853439445,-601.77402789,0.00025,2]
[393611958,1762853439455,-205.16096661,0.00025,2]
[393611959,1762853439464,-1646.2839291,0.00025,2]
[393611960,1762853439474,-6956.36628316,0.00025181,2]
[393611961,1762853439483,-1000.0,0.00025421,2]
[393611962,1762853439493,-1000.0,0.00025421,2]
[393611963,1762853439502,-362.45651944,0.00025421,2]
[393611964,1762853439511,-502.15227908,0.00025421,2]
[393611965,1762853439521,-1002.39810073,0.00025421,2]
[393611966,1762853439530,-164.09306745,0.00025508,2]
[393611967,1762853439544,-10728.60108037,0.00025879,2]
[393611968,1762853439554,-377.32217667,0.00025968,2]
[393611969,1762853439564,-500.0,0.00025968,2]
[393611970,1762853439574,-4471.51573416,0.00026,2]
[393611971,1762853439584,-211.15,0.00026438,7]
[393611972,1762853439594,-159.29,0.00026981,2]
[393611973,1762853439604,-150.99,0.00027494,2]
[393611974,1762853439614,-2113.04,0.00027494,10]
[393611975,1762853439623,-9999.99,0.00027494,2]
[393611976,1762853439633,-999.99,0.00027494,2]
[393611977,1762853439643,-9999.99,0.00027494,2]
[393611978,1762853439652,-322.16,0.00027494,2]
[393611979,1762853439661,-6064.92,0.000275,2]
[393611980,1762853439671,-167.42,0.000275,7]
[393611981,1762853439689,-3496.28,0.000275,7]
[393611982,1762853439699,-6956.36628316,0.00027593,2]
[393611983,1762853439709,-1428.96391688,0.00027777,2]
[393611984,1762853439720,-1000.0,0.00028,28]
[393611985,1762853439731,-198.27839501,0.00028121,2]
[393611986,1762853439741,-211.15,0.00028657,30]
[393611987,1762853439751,-156.0,0.00028899,2]
[393611988,1762853439765,-178.62,0.00028928,120]
[393611989,1762853439775,-159.29,0.00029005,2]
[393611990,1762853439784,-164.09306745,0.00029044,2]
[393611991,1762853439795,-32021.5462312,0.000294,5]
[393611992,1762853439804,-226.6,0.00029942,2]
[393611993,1762853439813,-8420.01,0.00029942,2]
[393611994,1762853439822,-389.27,0.0003,2]
[393611995,1762853439832,-302.7044161,0.0003,2]
[393611996,1762853439842,-6956.36628316,0.00030005,2]
[393611997,1762853439851,-827.13157845,0.0003013,30]
[393611998,1762853439861,-150.0,0.000307,30]
[393611999,1762853439870,-2000.0,0.00030728,2]
[393612000,1762853439880,-3496.28,0.000308,30]
[393612001,1762853439890,-211.15,0.00030876,30]
[393612002,1762853439899,-159.29,0.0003103,2]
[393612003,1762853439909,-4202.0,0.000314,3]
[393612004,1762853439918,-1639.21,0.00031928,2]
[393612005,1762853439927,-6064.92,0.00032,2]
[393612006,1762853439939,-1000.0,0.00032,32]
[393612007,1762853439951,-167.42,0.00032,7]
[393612008,1762853439960,-5516.0,0.000321,5]
[393612009,1762853439971,-6956.36628316,0.00032417,2]
[393612010,1762853439985,-197.35,0.00032431,2]
[393612011,1762853439995,-164.09306745,0.0003258,2]
[393612012,1762853440005,-1466.49601571,0.00033,2]
[393612013,1762853440014,-159.29,0.00033054,2]
[393612014,1762853440026,-211.15,0.00033095,30]
[393612015,1762853440036,-409.99,0.000331,60]
[393612016,1762853440047,-153.0,0.00033125,2]
[393612017,1762853440058,-153.0,0.00033125,2]
[393612018,1762853440067,-153.0,0.00033125,2]
[393612019,1762853440077,-153.0,0.00033125,2]
[393612020,1762853440086,-153.0,0.00033125,2]
[393612021,1762853440096,-153.0,0.00033125,2]
[393612022,1762853440106,-153.0,0.00033125,2]
[393612023,1762853440115,-153.0,0.00033125,2]
[393612024,1762853440125,-153.0,0.00033125,2]
[393612025,1762853440134,-153.0,0.00033125,2]
[393612026,1762853440144,-153.0,0.00033125,2]
[393612027,1762853440153,-153.0,0.00033125,2]
[393612028,1762853440163,-153.0,0.00033125,2]
[393612029,1762853440173,-153.0,0.00033125,2]
[393612030,1762853440183,-153.0,0.00033125,2]
[393612031,1762853440193,-153.0,0.00033125,2]
[393612033,1762853440203,-152.0,0.00033497,3]
[393612035,1762853440213,-3496.28,0.000335,30]
[393612036,1762853440222,-180.66875269,0.00033905,11]
[393612037,1762853440233,-877.73283215,0.00034,2]
[393612038,1762853440242,-156.0,0.00034276,2]
[393612039,1762853440252,-28361.57,0.00034524,2]
[393612040,1762853440263,-2143.0,0.00034557,2]
[393612041,1762853440273,-820.0,0.00034557,2]
[393612042,1762853440283,-1518.418,0.00034557,2]
[393612043,1762853440293,-3631.551,0.00034557,2]
[393612044,1762853440304,-166.35,0.0003466,2]
[393612045,1762853440316,-6956.36628316,0.00034828,2]
[393612046,1762853440325,-663.39036141,0.000349,2]
[393612047,1762853440335,-52350.12979533,0.00035,30]
[393612048,1762853440344,-1098.58517776,0.00035,30]
[393612049,1762853440354,-13291.65849912,0.00035,30]
[393612050,1762853440363,-866.42,0.00035123,5]
[393612051,1762853440373,-500.0,0.00035151,2]
[393612052,1762853440382,-200.0,0.00035241,2]
[393612053,1762853440391,-6064.92,0.000353,2]
[393612054,1762853440401,-167.42,0.000353,14]
[393612055,1762853440410,-211.15,0.00035314,60]
[393612056,1762853440419,-2987.769,0.00035431,42]
[393612057,1762853440428,-276.206,0.00035431,42]
[393612058,1762853440439,-150.0,0.00035431,2]
[393612059,1762853440449,-879.02,0.00035827,5]
[393612060,1762853440458,-197.35,0.00035963,2]
[393612061,1762853440468,-2500.0,0.00036033,2]
[393612062,1762853440477,-166.66,0.00036102,30]
[393612063,1762853440487,-164.09306745,0.00036116,2]
[393612064,1762853440497,-3496.28,0.000362,30]
[393612065,1762853440507,-2500.0,0.00036267,2]
[393612066,1762853440516,-303.62,0.00036426,2]
[393612067,1762853440526,-17751.91,0.00036522,2]
[393612068,1762853440535,-655.85,0.00036525,2]
[393612069,1762853440545,-151.0,0.0003684,2]
[393612070,1762853440554,-151.0,0.0003684,2]
[393612071,1762853440563,-151.0,0.0003684,2]
[393612072,1762853440573,-151.0,0.0003684,2]
[393612073,1762853440582,-151.0,0.0003684,2]
[393612074,1762853440591,-151.0,0.0003684,2]
[393612075,1762853440600,-151.0,0.0003684,2]
[393612076,1762853440609,-151.0,0.0003684,2]
[393612077,1762853440618,-151.0,0.0003684,2]
[393612078,1762853440627,-151.0,0.0003684,2]
[393612079,1762853440637,-151.0,0.0003684,2]
[393612080,1762853440646,-151.0,0.0003684,2]